bitfinex/quotes_ETHUSD_20241101
["timestamp","ask_amount","ask_price","bid_price","bid_amount"]
[1730420690181,4.7301,2525.4,2525.1,0.29623877]
[1730420690341,4.7301,2525.4,2525.0,1.39753151]
[1730420690670,4.7301,2525.4,2525.1,0.29621015]
[1730420690875,4.7301,2525.4,2525.0,5.35792151]
[1730420691076,4.7301,2525.4,2525.1,0.29621478]
[1730420691242,2.73982269,2527.1,2525.1,0.29621478]
[1730420691243,0.7648,2525.9,2525.2,5.31760151]
[1730420691443,3.95916,2525.8,2525.6,1.35753151]
[1730420693778,7.9184,2525.8,2525.6,1.35753151]
[1730420694090,3.95929,2525.7,2525.6,1.35753151]
[1730420694442,7.91841,2525.8,2525.6,1.35753151]
[1730420694899,3.95916,2525.8,2525.6,1.35753151]
[1730420695239,7.91839,2525.8,2525.6,1.35753151]
[1730420695645,3.95929,2525.7,2525.6,1.35753151]
[1730420697758,7.91813,2525.9,2525.6,1.35753151]
[1730420698160,3.95901,2525.9,2525.6,1.35753151]
[1730420698375,3.95921,2525.8,2525.6,1.35753151]
[1730420699761,4.72356,2526.1,2525.6,1.35753151]
[1730420699965,3.95889,2526.0,2525.7,0.04]
[1730420700365,3.95889,2526.0,2525.8,1.35753151]
[1730420701467,7.91755,2526.1,2525.8,1.35753151]
[1730420701703,3.95876,2526.1,2525.8,1.35753151]
[1730420701885,3.95892,2526.0,2525.8,1.35753151]
[1730420702589,0.8068,2526.3,2525.8,1.35753151]
[1730420702786,3.95884,2526.0,2525.8,1.35753151]
[1730420703665,7.91778,2526.0,2525.8,1.35753151]
[1730420704773,3.95898,2525.9,2525.8,1.35753151]
[1730420705607,3.95898,2525.9,2525.7,0.04]
[1730420705773,3.95898,2525.9,2525.4,3.95969]
[1730420705774,3.95936,2525.7,2525.4,1.39753151]
[1730420706217,3.95936,2525.7,2525.6,1.35753151]
[1730420707232,3.95914,2525.8,2525.6,1.35753151]
[1730420708619,3.95929,2525.7,2525.6,1.35753151]
[1730420710026,3.95914,2525.8,2525.6,1.35753151]
[1730420710190,7.91837,2525.8,2525.6,1.35753151]
[1730420710733,3.95914,2525.8,2525.6,1.35753151]
[1730420711497,4.72014,2526.1,2525.7,0.04]
[1730420711731,3.95874,2526.1,2526.0,1.35753151]
[1730420713717,3.95852,2526.2,2526.0,1.35753151]
[1730420714096,0.7614,2526.3,2526.0,1.35753151]
[1730420714097,4.71984,2526.3,2526.0,1.35753151]
[1730420714296,3.95853,2526.2,2526.0,1.35753151]
[1730420714935,4.71984,2526.3,2526.0,1.35753151]
[1730420716031,3.95822,2526.4,2526.2,1.35753151]
[1730420717209,3.95799,2526.6,2526.2,1.35753151]
[1730420717534,3.95799,2526.6,2526.4,1.35753151]
[1730420719633,3.95804,2526.5,2526.4,1.35753151]
[1730420723020,3.9579,2526.6,2526.4,1.35753151]
[1730420723226,7.91586,2526.6,2526.4,1.35753151]
[1730420723421,3.9579,2526.6,2526.4,1.35753151]
[1730420724553,7.91592,2526.6,2526.4,1.35753151]
[1730420724724,3.9579,2526.6,2526.4,1.35753151]
[1730420726651,7.9159,2526.6,2526.4,1.35753151]
[1730420729658,3.95804,2526.5,2526.4,1.35753151]
[1730420730634,3.95833,2526.4,2526.2,1.35753151]
[1730420735322,3.95794,2526.6,2526.2,1.35753151]
[1730420735527,3.95794,2526.6,2526.4,1.35753151]
[1730420736467,7.91593,2526.6,2526.4,1.35753151]
[1730420737145,3.95804,2526.5,2526.4,1.35753151]
[1730420738356,3.95793,2526.6,2526.4,1.35753151]
[1730420739176,3.95804,2526.5,2526.4,1.35753151]
[1730420739474,3.95793,2526.6,2526.4,1.35753151]
[1730420740281,3.95776,2526.7,2526.4,1.35753151]
[1730420741635,3.95788,2526.6,2526.4,1.35753151]
[1730420749794,7.91584,2526.6,2526.4,1.35753151]
[1730420750987,3.95788,2526.6,2526.4,1.35753151]
[1730420753369,3.95765,2526.8,2526.4,1.35753151]
[1730420753568,0.8083,2526.9,2526.6,1.35753151]
[1730420753779,3.95773,2526.7,2526.6,1.35753151]
[1730420754696,3.95765,2526.8,2526.6,1.35753151]
[1730420758359,3.95773,2526.7,2526.6,1.35753151]
[1730420758563,3.95773,2526.7,2526.4,1.35753151]
[1730420759895,3.9579,2526.6,2526.4,1.35753151]
[1730420760111,3.9581,2526.5,2526.2,1.83067111]
[1730420760403,3.9581,2526.5,2526.3,0.29581494]
[1730420760576,3.9581,2526.5,2526.2,1.35753151]
[1730420760901,3.9581,2526.5,2526.3,0.29581728]
[1730420761098,3.9581,2526.5,2526.2,1.35753151]
[1730420761301,3.9582,2526.4,2526.3,0.29587735]
[1730420761459,3.9582,2526.4,2526.2,1.35753151]
[1730420761460,4.7359,2526.4,2526.2,1.35753151]
[1730420762598,0.7777,2526.4,2526.2,1.35753151]
[1730420763676,4.7359,2526.4,2526.2,1.35753151]
[1730420766480,0.7777,2526.4,2526.2,1.35753151]
[1730420766675,4.73592,2526.4,2526.3,0.2959578]
[1730420767813,4.73592,2526.4,2526.2,1.35753151]
[1730420769782,3.95835,2526.3,2526.2,1.35753151]
[1730420770292,3.95835,2526.3,2526.2,1.65335668]
[1730420770724,3.95852,2526.2,2526.0,1.77040424]
[1730420771013,3.95852,2526.2,2526.1,0.29586648]
[1730420771689,4.73591,2526.4,2526.1,0.29586648]
[1730420771889,4.73591,2526.4,2526.2,1.65343239]
[1730420772098,3.95814,2526.5,2526.2,1.35753151]
[1730420772305,3.95743,2526.9,2526.4,1.35753151]
[1730420772306,3.95749,2526.9,2526.4,1.35753151]
[1730420772500,3.95749,2526.9,2526.7,1.35753151]
[1730420773181,4.78376,2527.0,2526.7,1.35753151]
[1730420773380,3.95774,2526.7,2526.5,1.39753151]
[1730420773836,3.95817,2526.5,2526.3,0.47316343]
[1730420774000,3.95813,2526.5,2526.3,0.47322489]
[1730420774205,3.95813,2526.5,2526.1,5.78954982]
[1730420774515,3.95813,2526.5,2526.3,1.35753151]
[1730420774906,0.7966,2526.7,2526.3,1.35753151]
[1730420775116,4.75444,2526.7,2526.5,1.35753151]
[1730420775317,3.95769,2526.8,2526.5,1.35753151]
[1730420775527,3.95769,2526.8,2526.7,1.35753151]
[1730420777099,4.831176,2526.8,2526.7,1.35753151]
[1730420777611,4.831176,2526.8,2526.5,1.35753151]
[1730420778316,3.95769,2526.8,2526.5,1.35753151]
[1730420778629,8.73472,2526.9,2526.5,1.35753151]
[1730420778832,3.95722,2527.1,2526.7,1.35753151]
[1730420779130,3.95727,2527.0,2526.7,1.35753151]
[1730420780832,0.7682,2527.2,2526.7,1.35753151]
[1730420781035,5.197686,2527.2,2526.7,1.35753151]
[1730420781340,3.95721,2527.1,2526.7,1.35753151]
[1730420782313,3.95734,2527.0,2526.7,1.35753151]
[1730420783313,1.240686,2527.2,2526.7,1.35753151]
[1730420783536,7.91441,2527.1,2526.7,1.35753151]
[1730420783705,3.95726,2527.0,2526.7,1.35753151]
[1730420786335,3.95726,2527.0,2526.7,1.39753151]
[1730420786543,4.8726396,2527.1,2526.7,1.39753151]
[1730420786834,5.197656,2527.2,2526.7,5.35515151]
[1730420787033,5.197656,2527.2,2526.9,1.35753151]
[1730420787034,4.429456,2527.2,2526.9,1.35753151]
[1730420788839,0.472486,2527.2,2526.9,1.35753151]
[1730420789049,4.74605,2527.4,2527.1,1.35753151]
[1730420789050,3.95664,2527.4,2527.1,1.35753151]
[1730420789633,3.9565,2527.5,2527.1,1.35753151]
[1730420789909,4.0158302,2527.6,2527.3,1.35753151]
[1730420790129,4.01442918,2527.6,2527.3,1.35753151]
[1730420790731,4.01442918,2527.6,2527.3,1.39753151]
[1730420791141,4.01440918,2527.6,2527.3,1.39753151]
[1730420791534,3.95655,2527.5,2527.3,0.04]
[1730420792167,3.95655,2527.5,2527.1,1.35753151]
[1730420792168,3.95663,2527.4,2527.1,1.35753151]
[1730420793060,3.95681,2527.3,2527.1,1.35753151]
[1730420793713,1.23952797,2527.5,2527.0,0.04]
[1730420793913,3.95679,2527.3,2527.0,0.04]
[1730420794650,3.95701,2527.2,2527.0,0.04]
[1730420794855,3.9571,2527.1,2526.9,1.35753151]
[1730420798919,3.9571,2527.1,2526.8,0.04]
[1730420800030,3.95697,2527.2,2526.8,0.04]
[1730420800232,3.95674,2527.4,2526.9,1.35753151]
[1730420800455,1.23952797,2527.5,2527.2,0.04]
[1730420800657,3.9565,2527.5,2527.2,0.04]
[1730420801153,3.95632,2527.6,2527.3,1.35753151]
[1730420805127,3.95632,2527.6,2527.2,0.04]
[1730420807935,7.91275,2527.6,2527.2,0.04]
[1730420808473,3.95632,2527.6,2527.2,0.04]
[1730420814078,3.95612,2527.8,2527.2,0.04]
[1730420814079,3.95619,2527.7,2527.3,1.35753151]
[1730420814469,3.95606,2527.8,2527.5,1.35753151]
[1730420816584,3.95574,2528.0,2527.5,1.4366577]
[1730420816787,3.95574,2528.0,2527.7,1.35753151]
[1730420817084,3.95561,2528.1,2527.7,1.35753151]
[1730420817845,3.9557,2528.0,2527.7,1.35753151]
[1730420818245,3.9554,2528.2,2527.7,1.35753151]
[1730420818590,3.95554,2528.1,2527.7,1.35753151]
[1730420819362,3.9554,2528.2,2527.7,1.35753151]
[1730420819686,7.91089,2528.2,2527.8,0.04]
[1730420820286,3.9554,2528.2,2527.8,0.11911403]
[1730420820659,3.9554,2528.2,2527.8,0.04]
[1730420821554,0.005,2528.3,2527.9,5.31337151]
[1730420821762,0.005,2528.3,2528.2,0.04]
[1730420822480,3.96022,2528.3,2528.2,0.04]
[1730420823802,0.005,2528.3,2528.0,0.04]
[1730420824101,3.95539,2528.2,2528.0,0.04]
[1730420824255,0.005,2528.3,2528.0,0.04]
[1730420825295,3.96034,2528.3,2528.0,0.04]
[1730420825486,3.9554,2528.2,2528.0,0.04]
[1730420825690,3.96023,2528.3,2528.0,0.04]
[1730420827868,0.005,2528.3,2528.0,0.04]
[1730420829067,0.005,2528.3,2528.0,4.83092815]
[1730420829377,0.005,2528.3,2528.1,1.35753151]
[1730420830490,0.005,2528.3,2528.1,5.31306151]
[1730420832099,0.005,2528.3,2528.1,1.35753151]
[1730420832903,0.005,2528.3,2528.1,5.31299151]
[1730420833080,0.005,2528.3,2528.1,5.93182448]
[1730420833468,0.005,2528.3,2528.1,1.97636448]
[1730420838769,0.005,2528.3,2528.1,0.61883297]
[1730420846683,0.005,2528.3,2528.2,4.50538]
[1730420849017,0.005,2528.3,2528.2,0.55]
[1730420850193,0.005,2528.3,2528.2,4.69108926]
[1730420850698,0.005,2528.3,2528.2,4.7701833]
[1730420854824,0.005,2528.3,2528.2,5.3601833]
[1730420855226,0.005,2528.3,2528.2,8.3601833]
[1730420855430,0.005,2528.3,2528.2,8.57493832]
[1730420858216,0.005,2528.3,2528.2,9.04531184]
[1730420858450,0.005,2528.3,2528.2,8.57493832]
[1730420858653,0.005,2528.3,2528.2,10.06611264]
[1730420859848,0.005,2528.3,2528.2,10.06612538]
[1730420860203,0.005,2528.6,2528.2,15.07484276]
[1730420860368,0.1232347,2529.1,2529.0,4.741]
[1730420860513,0.1232347,2529.1,2529.0,10.15107011]
[1730420860716,3.9524,2530.2,2529.7,3.9529]
[1730420860717,4.70904,2530.2,2529.7,3.9529]
[1730420861054,4.70904,2530.2,2529.8,3.55]
[1730420861356,0.005,2530.3,2530.2,3.95225]
[1730420861510,0.005,2530.3,2530.2,5.85978151]
[1730420861711,0.005,2530.3,2530.2,0.55]
[1730420861910,0.005,2530.3,2530.0,8.31008151]
[1730420862149,0.005,2530.3,2530.1,0.41225073]
[1730420862331,0.005,2530.3,2530.2,0.87223322]
[1730420862925,0.005,2530.3,2530.2,0.95126941]
[1730420864360,0.005,2530.3,2530.2,6.73201473]
[1730420864956,0.005,2530.3,2530.2,9.85104188]
[1730420865161,0.005,2530.3,2530.2,9.77201473]
[1730420867640,0.005,2530.3,2529.4,0.98461559]
[1730420867641,3.95234,2530.2,2529.7,3.95303]
[1730420867857,4.77141,2530.3,2529.8,3.9528]
[1730420868055,3.95239,2530.2,2529.7,3.95301]
[1730420868369,3.95239,2530.2,2529.7,4.03206034]
[1730420868581,4.76682,2530.1,2529.7,0.07905034]
[1730420868745,4.76682,2530.1,2529.6,5.38975185]
[1730420868962,4.76682,2530.1,2529.7,3.0]
[1730420869271,3.95258,2530.0,2529.6,4.35753151]
[1730420869572,3.95258,2530.0,2529.6,3.0]
[1730420870266,3.95258,2530.0,2529.6,3.07905111]
[1730420870474,4.76671,2530.1,2529.6,7.03215111]
[1730420871670,4.76671,2530.1,2529.6,7.03222111]
[1730420872243,3.95259,2530.0,2529.6,3.07905111]
[1730420872842,4.76671,2530.1,2529.6,7.03216111]
[1730420873643,4.76671,2530.1,2529.6,10.98526111]
[1730420873839,4.76671,2530.1,2529.6,6.9531]
[1730420874173,4.76671,2530.1,2529.6,7.03215078]
[1730420874335,4.76671,2530.1,2529.6,10.98526078]
[1730420874539,4.76671,2530.1,2529.6,10.90621]
[1730420874735,8.71924,2530.1,2529.6,6.9531]
[1730420874989,4.76671,2530.1,2529.7,0.07905079]
[1730420876193,3.95257,2530.0,2529.7,0.07905079]
[1730420876396,4.76671,2530.1,2529.7,0.07905079]
[1730420876609,3.95259,2530.0,2529.5,3.95332]
[1730420876772,3.95259,2530.0,2529.6,3.0]
[1730420876979,0.8143,2530.1,2529.6,3.0]
[1730420877174,0.8143,2530.1,2529.6,6.95307]
[1730420877380,0.7882,2530.3,2529.7,4.07199144]
[1730420877587,0.7882,2530.3,2530.0,3.95256]
[1730420877789,0.7882,2530.3,2529.8,3.55]
[1730420877790,0.005,2530.3,2529.8,3.55]
[1730420877992,0.005,2530.3,2530.2,3.95225]
[1730420879102,0.005,2530.3,2530.2,4.50225]
[1730420883170,0.005,2530.3,2530.2,7.50225]
[1730420885391,0.005,2530.3,2529.5,2.92862019]
[1730420885723,0.8256,2530.2,2530.0,3.95253]
[1730420885878,0.8256,2530.2,2530.0,3.95248]
[1730420886601,0.005,2530.3,2530.0,3.95248]
[1730420886909,0.005,2530.3,2529.9,0.07904279]
[1730420887124,3.9572,2530.3,2529.9,3.0]
[1730420887290,3.95711,2530.3,2529.9,6.95265]
[1730420888109,0.005,2530.3,2529.9,6.95265]
[1730420888311,0.005,2530.3,2530.0,0.07904168]
[1730420888620,0.005,2530.3,2530.0,4.03160168]
[1730420888806,0.005,2530.3,2530.0,0.07904168]
[1730420889375,0.005,2530.3,2530.0,4.03160168]
[1730420889711,0.005,2530.3,2530.2,3.95225]
[1730420893404,0.005,2530.3,2530.2,7.50225]
[1730420893907,0.005,2530.3,2529.9,3.95261]
[1730420893908,0.8013,2530.2,2529.9,3.95261]
[1730420894207,0.8013,2529.7,2529.3,3.99352]
[1730420894520,0.8013,2529.7,2529.3,3.95352]
[1730420895014,0.8013,2529.9,2529.6,3.95311]
[1730420895222,0.8013,2529.9,2529.6,4.0321671]
[1730420895720,0.8013,2529.9,2529.5,3.95323]
[1730420895721,4.7541,2529.9,2529.5,3.95323]
[1730420896380,4.6041,2529.9,2529.5,3.95323]
[1730420898630,4.6041,2529.9,2529.5,7.9065]
[1730420899226,4.6041,2529.9,2529.5,3.95323]
[1730420899459,0.6513,2529.9,2529.5,7.90646]
[1730420899659,0.6513,2529.9,2529.6,3.95312]
[1730420900168,0.6513,2529.9,2529.7,3.9529]
[1730420900660,0.6513,2529.9,2529.6,0.07905465]
[1730420900839,0.6513,2529.9,2529.4,3.95337]
[1730420901021,4.60406,2529.9,2529.5,3.95325]
[1730420901437,0.6513,2529.9,2529.5,3.95325]
[1730420902219,0.6513,2529.9,2529.5,4.03230467]
[1730420902555,4.60404,2529.9,2529.5,4.03230467]
[1730420902746,4.60404,2529.9,2529.5,3.95325]
[1730420902946,0.6513,2529.9,2529.4,3.95337]
[1730420903251,0.6513,2529.9,2529.5,3.95325]
[1730420903469,4.60415,2529.9,2529.6,0.0790547]
[1730420903759,4.60409,2529.9,2529.3,3.0]
[1730420903920,2.92862019,2530.0,2529.1,0.29339377]
[1730420904117,2.92862019,2530.0,2529.1,3.95389]
[1730420904118,3.95343,2529.5,2529.1,3.95389]
[1730420904519,3.95343,2529.5,2529.0,3.95406]
[1730420904520,0.7746,2529.8,2529.0,3.95406]
[1730420904740,0.7746,2529.4,2529.0,7.90812]
[1730420904942,0.7746,2529.4,2529.1,3.95393]
[1730420905162,0.7746,2529.4,2529.2,3.95381]
[1730420906663,0.7746,2529.4,2529.1,3.0]
[1730420906976,0.7746,2529.4,2529.1,6.95396]
[1730420907538,0.7746,2529.4,2529.1,10.90786]
[1730420907851,0.7746,2529.4,2529.1,10.90779]
[1730420908049,0.7746,2529.4,2529.1,6.95389]
[1730420908368,0.7746,2529.4,2529.1,6.95394]
[1730420908540,0.7746,2529.4,2529.1,10.90788]
[1730420908741,0.7746,2529.4,2529.1,10.90783]
[1730420908941,0.7746,2529.4,2529.1,6.95389]
[1730420909141,0.7746,2529.4,2529.2,3.95373]
[1730420910453,0.7746,2529.4,2529.1,6.95389]
[1730420911068,0.7746,2529.4,2529.1,10.90776]
[1730420911375,0.7746,2529.4,2529.1,6.95387]
[1730420912183,0.7746,2529.4,2529.0,3.95411]
[1730420912482,0.7746,2529.4,2529.2,3.95381]
[1730420912645,0.7746,2529.4,2529.1,4.03302067]
[1730420913386,0.7746,2529.4,2529.2,3.9538]
[1730420914301,0.7746,2529.4,2529.1,3.95395]
[1730420914626,0.7746,2529.4,2529.2,3.95379]
[1730420915590,0.7746,2529.4,2529.1,3.95395]
[1730420916009,0.7746,2529.4,2529.1,7.90785]
[1730420916410,0.7746,2529.4,2529.2,3.95379]
[1730420921439,3.95302,2529.8,2529.2,3.95379]
[1730420921440,0.7566,2529.7,2529.2,4.00924587]
[1730420921737,0.7566,2529.7,2529.4,3.95343]
[1730420922506,0.7566,2529.7,2529.3,3.95366]
[1730420922704,0.7566,2529.7,2529.4,3.95349]
[1730420924043,0.7566,2529.7,2529.0,4.14412]
[1730420924248,0.8318,2529.9,2529.6,3.95319]
[1730420924605,3.95295,2529.8,2529.4,3.95347]
[1730420924812,3.95297,2529.8,2529.4,3.9534]
[1730420925117,3.95295,2529.8,2529.4,4.02406622]
[1730420925311,0.7881,2529.6,2529.2,6.95366]
[1730420925819,0.7881,2529.6,2529.3,3.95362]
[1730420926018,1.35234867,2529.5,2529.0,0.19]
[1730420926403,4.74132,2529.6,2529.1,4.01099425]
[1730420927549,0.7881,2529.6,2529.3,3.95365]
[1730420927891,0.7881,2529.6,2529.0,4.22304924]
[1730420927892,5.30573867,2529.5,2529.0,4.22304924]
[1730420928143,4.71413,2529.4,2529.0,3.95412]
[1730420928841,4.71411,2529.4,2529.0,3.95412]
[1730420929015,3.95438,2528.9,2528.4,3.955]
[1730420929218,3.95438,2528.9,2528.5,3.95483]
[1730420929219,0.8015,2528.8,2528.5,3.95483]
[1730420929617,0.8015,2528.8,2528.5,3.95482]
[1730420930150,0.8015,2528.8,2528.6,4.03379843]
[1730420930313,0.8015,2528.8,2528.6,3.95471]
[1730420930510,0.7927,2529.1,2528.7,0.07908621]
[1730420930712,0.7927,2529.1,2528.9,3.95413]
[1730420930910,0.7927,2529.4,2529.0,3.95413]
[1730420931112,0.7927,2529.4,2528.6,0.19]
[1730420931671,0.7927,2529.4,2529.0,3.95409]
[1730420931879,0.7927,2529.4,2528.9,3.95416]
[1730420931880,0.7927,2529.4,2529.2,3.95378]
[1730420932237,0.7927,2529.6,2529.3,3.95366]
[1730420933084,0.7927,2529.6,2529.2,3.95379]
[1730420934480,3.95335,2529.5,2528.9,3.95416]
[1730420934695,4.74217,2529.3,2528.9,3.95416]
[1730420935784,4.74217,2529.3,2528.8,0.0790744]
[1730420935945,0.7885,2529.3,2528.9,3.0]
[1730420936143,4.74216,2529.3,2528.9,6.95418]
[1730420936560,4.74216,2529.3,2528.9,7.03325762]
[1730420940194,4.74216,2529.3,2528.9,6.95418]
[1730420940488,0.8087,2529.2,2528.9,6.95418]
[1730420941466,0.8087,2529.2,2528.9,10.90839]
[1730420941679,0.8087,2529.2,2529.0,3.9541]
[1730420943398,0.8087,2529.2,2529.0,4.24830745]
[1730420944763,0.8087,2529.2,2529.0,8.20237745]
[1730420944968,3.95316,2529.7,2528.6,0.82202634]
[1730420944969,0.8132,2529.4,2528.6,0.82202634]
[1730420945199,0.8132,2529.4,2529.1,3.95394]
[1730420945492,0.8132,2529.4,2528.9,0.19]
[1730420945693,0.8132,2529.4,2529.0,4.24833417]
[1730420946000,0.8132,2529.4,2529.0,7.90808]
[1730420946158,0.8132,2529.4,2529.0,3.95404]
[1730420946581,0.8132,2529.4,2529.0,7.9081]
[1730420947170,0.8132,2529.4,2529.0,3.95404]
[1730420947485,0.8132,2529.4,2528.9,0.55]
[1730420947660,0.8132,2529.4,2529.2,3.95374]
[1730420948858,0.8132,2529.4,2529.2,7.90747]
[1730420949094,0.8132,2529.4,2529.2,3.95373]
[1730420949281,0.8264,2529.6,2529.2,7.90746]
[1730420949689,0.8264,2529.6,2529.1,0.19]
[1730420950000,0.8264,2529.6,2529.5,3.95335]
[1730420951408,0.8264,2529.6,2529.1,0.66089521]
[1730420951409,0.8264,2529.6,2529.4,0.29429852]
[1730420951700,4.77962,2529.6,2529.2,0.2943388]
[1730420951875,4.77962,2529.6,2529.1,7.90778]
[1730420952201,0.8032,2529.5,2529.2,0.29435245]
[1730420952367,4.75657,2529.5,2529.1,3.95389]
[1730420952564,0.8032,2529.5,2529.1,3.95383]
[1730420952765,0.8032,2529.5,2529.2,0.29436361]
[1730420952969,0.8032,2529.5,2529.1,7.90773]
[1730420953211,0.8032,2529.5,2529.2,0.29436756]
[1730420953366,0.8032,2529.5,2529.2,0.29436061]
[1730420953689,0.8032,2529.5,2529.1,7.90774]
[1730420954163,0.8032,2529.5,2529.2,0.29436977]
[1730420954360,0.8032,2529.5,2529.1,7.90774]
[1730420954593,0.8032,2529.5,2529.2,0.29436962]
[1730420954785,0.8032,2529.5,2529.1,3.95383]
[1730420954984,0.8032,2529.5,2529.2,0.29438475]
[1730420955200,0.8032,2529.5,2529.1,7.9077]
[1730420955400,0.8032,2529.5,2529.2,0.29438471]
[1730420955578,0.8032,2529.5,2529.1,3.95383]
[1730420955774,4.75656,2529.5,2529.2,0.29438632]
[1730420955975,4.75656,2529.5,2529.1,3.95383]
[1730420956179,0.8032,2529.5,2529.2,0.29439119]
[1730420956387,0.8032,2529.5,2529.1,3.95383]
[1730420956581,0.8032,2529.5,2529.2,0.29439195]
[1730420956784,4.75655,2529.5,2529.1,3.95383]
[1730420957100,4.75655,2529.5,2529.2,0.29439526]
[1730420957402,0.8032,2529.5,2529.1,7.90771]
[1730420957607,0.8032,2529.5,2529.2,0.29438467]
[1730420957935,0.8032,2529.5,2529.1,7.90771]
[1730420958114,0.8032,2529.5,2529.2,0.29438484]
[1730420958409,0.8032,2529.5,2529.1,3.95383]
[1730420958612,0.8032,2529.5,2529.2,0.2943951]
[1730420958914,0.8032,2529.5,2529.1,7.90771]
[1730420959201,0.8032,2529.5,2529.2,0.29438834]
[1730420959373,0.8032,2529.5,2529.1,7.90772]
[1730420959576,0.8032,2529.5,2529.2,0.29439721]
[1730420959879,0.8032,2529.5,2529.1,3.95383]
[1730420960096,0.8032,2529.5,2529.1,7.90773]
[1730420960276,0.8032,2529.5,2529.2,4.24819037]
[1730420960603,0.8032,2529.5,2529.0,3.0]
[1730420960812,0.8032,2529.5,2529.1,4.24834148]
[1730420960967,0.8032,2529.5,2529.2,0.29439148]
[1730420961172,0.8032,2529.5,2529.1,3.95395]
[1730420961418,0.8032,2529.5,2529.2,0.29439525]
[1730420961708,0.8032,2529.5,2529.1,3.95395]
[1730420961901,0.8032,2529.5,2529.2,0.29439446]
[1730420962099,0.8032,2529.5,2529.1,3.95395]
[1730420962297,0.8032,2529.5,2529.2,4.24806477]
[1730420962513,0.8032,2529.5,2529.3,4.24801798]
[1730420962716,3.95277,2529.9,2529.3,4.24801798]
[1730420962717,3.95277,2529.9,2529.4,3.9535]
[1730420962894,0.7697,2529.8,2529.5,3.95327]
[1730420963096,0.7697,2529.8,2529.2,0.19]
[1730420963097,4.72266,2529.8,2529.3,3.95359]
[1730420963289,4.72266,2529.8,2529.4,0.29430003]
[1730420963603,4.72266,2529.8,2529.4,3.95344]
[1730420964692,4.72266,2529.8,2529.4,4.24775028]
[1730420966080,4.72266,2529.8,2529.4,3.95344]
[1730420966604,4.72266,2529.8,2529.2,0.19]
[1730420966605,3.95306,2529.7,2529.3,4.24794039]
[1730420966774,3.95306,2529.7,2529.3,3.95364]
[1730420967392,0.7579,2529.6,2529.2,7.24808698]
[1730420967691,0.7579,2529.6,2529.3,0.29433545]
[1730420970630,4.7111,2529.6,2529.2,6.95376]
[1730420971123,0.7579,2529.6,2529.2,6.95376]
[1730420971290,0.7579,2529.6,2529.3,0.29437931]
[1730420971492,0.7579,2529.6,2529.2,10.90748]
[1730420971691,0.7579,2529.6,2529.3,0.29436505]
[1730420971914,0.7579,2529.6,2529.2,10.90748]
[1730420972118,0.7579,2529.6,2529.3,0.29436351]
[1730420972429,0.7579,2529.6,2529.2,10.90748]
[1730420972731,0.7579,2529.6,2529.3,0.29441298]
[1730420972985,0.7579,2529.6,2529.2,10.90748]
[1730420973424,0.7579,2529.6,2529.3,0.29440782]
[1730420973628,0.7579,2529.6,2529.2,10.90748]
[1730420973827,0.7579,2529.6,2529.3,0.29440761]
[1730420974029,0.7579,2529.6,2529.2,10.90748]
[1730420974195,0.7579,2529.6,2529.3,0.29440946]
[1730420974533,0.7579,2529.6,2529.2,10.90748]
[1730420974713,0.7579,2529.6,2529.3,0.29441458]
[1730420975135,0.7579,2529.6,2529.2,10.90748]
[1730420975445,0.7579,2529.6,2529.3,0.29441675]
[1730420975628,0.7579,2529.6,2529.3,3.95364]
[1730420976535,0.7579,2529.6,2529.4,4.24793235]
[1730420976738,0.7579,2529.6,2529.5,3.95335]
[1730420977241,0.7579,2529.6,2529.5,4.24790121]
[1730420977830,0.7579,2529.6,2529.5,3.95335]
[1730420978450,0.7579,2529.6,2529.4,3.95342]
[1730420978603,0.7579,2529.6,2529.4,7.90683]
[1730420978803,0.7579,2529.6,2529.4,3.95341]
[1730420979103,0.7579,2529.6,2529.4,7.90684]
[1730420979309,0.7579,2529.6,2529.3,3.95351]
[1730420979528,0.7579,2529.6,2529.4,0.29455739]
[1730420979729,0.7579,2529.6,2529.3,3.95351]
[1730420979935,0.7579,2529.6,2529.4,0.29453468]
[1730420980144,0.7579,2529.6,2529.3,7.90707]
[1730420980319,0.7579,2529.6,2529.4,0.29452531]
[1730420980512,0.7579,2529.6,2529.3,3.95351]
[1730420980723,0.7579,2529.6,2529.4,0.29453871]
[1730420980923,0.7579,2529.6,2529.3,3.95351]
[1730420981121,0.7579,2529.6,2529.4,0.29453963]
[1730420981320,0.7579,2529.6,2529.3,3.95351]
[1730420981624,0.7579,2529.6,2529.4,0.29454924]
[1730420981811,0.7579,2529.6,2529.3,3.95351]
[1730420982244,0.7579,2529.6,2529.4,0.29454611]
[1730420982543,0.7579,2529.6,2529.3,3.95351]
[1730420982745,0.7579,2529.6,2529.4,0.2945584]
[1730420982956,0.7579,2529.6,2529.3,3.95351]
[1730420983110,0.7579,2529.6,2529.4,0.29455786]
[1730420983309,0.7579,2529.6,2529.3,3.95351]
[1730420983509,0.7579,2529.6,2529.4,0.29456237]
[1730420983743,0.7579,2529.6,2529.3,3.95351]
[1730420983927,0.7579,2529.6,2529.4,0.29454979]
[1730420984131,0.7579,2529.6,2529.3,3.95351]
[1730420984346,0.7579,2529.6,2529.4,0.29456272]
[1730420984548,0.7579,2529.6,2529.3,3.95351]
[1730420984867,0.7579,2529.6,2529.4,0.29449943]
[1730420985025,0.7579,2529.6,2529.3,3.95351]
[1730420985220,0.7579,2529.6,2529.4,0.29446992]
[1730420985463,0.7579,2529.6,2529.3,7.9071]
[1730420985619,0.7579,2529.6,2529.4,0.2944687]
[1730420985821,0.7579,2529.6,2529.3,3.95351]
[1730420986018,0.7579,2529.6,2529.4,0.29446792]
[1730420986258,0.7579,2529.6,2529.3,3.95351]
[1730420986461,0.7579,2529.6,2529.4,0.29448684]
[1730420986667,0.7579,2529.6,2529.3,3.95351]